Cogmind - Beta 12 @@@ ROGUE MODE // 2023.12.14 @ 23:47:13 Player: puppuppit Result: Destroyed by G-47 Trooper with Particle Gun Performance ------------- Evolutions (2) 1000 Regions Visited (8) 1600 Robots Destroyed (46) 230 Value Destroyed (1023) 1023 Prototype IDs (34) 680 Alien Tech Used (0) 0 Bonus (317) 317 TOTAL SCORE: 4850 Bonus ------- High Alert Combat Kills 11 Follower Combat Kills 141 Aligned with FarCom 300 Friendly Fire -135 Cogmind --------- Core Integrity 0/550 Matter 290/300 Energy 272/275 System Corruption 0% Temperature Cool (39) Movement Flying (30) Location -8/Storage Parts ------- > --- POWER (1) -------- Deuterium Engine > --- PROPULSION (4) --- Improved Flight Unit Improved VTOL Module Cooled VTOL Module Faulty Cooled VTOL Module > --- UTILITY (4) ------ Advanced Targeting Computer Advanced Targeting Computer Propulsion Shielding System Shield > --- WEAPON (2) ------- Field Laser Improved Datajack > --- INVENTORY (5) ---- Improved Terrain Scanner Advanced Targeting Computer Sensor Drone Bay (16/20) Chronowheel Bore Cannon Peak State ------------ > --- POWER ------------ Deuterium Engine > --- PROPULSION ------- Improved Flight Unit Improved VTOL Module Cooled VTOL Module Cooled VTOL Module > --- UTILITY ---------- Advanced Targeting Computer Advanced Targeting Computer Propulsion Shielding System Shield > --- WEAPON ----------- Heavy EM Shotgun Improved Datajack > --- INVENTORY -------- Improved Terrain Scanner Sensor Drone Bay Chronowheel Bore Cannon Scatter Rocket Array [Rating: 40] Favorites ----------- Power Light Ion Engine Engine Light Ion Engine Power Core Light Nuclear Core Propulsion Improved Hover Unit Wheel Compact Wheel Hover Unit Improved Hover Unit Flight Unit Flight Unit Utility Targeting Computer Device Improved Terrain Scanner Storage Small Storage Unit Processor Targeting Computer Hackware Hacking Suite Protection Propulsion Shielding Weapon Light Assault Rifle Energy Gun Heavy EM Shotgun Energy Cannon Particle Cannon Ballistic Gun Light Assault Rifle Ballistic Cannon Light Cannon Special Melee Weapon Improved Datajack Build | -11 -10 -10 -9 -9 -9 -8 -8 -8 ------- Run | Jun Mat Min Mat Min Exi Min Mat Sto Slots Evolved 4 | . . . 2 . . . 2 . Power . | . . . . . . . . . Propulsion 2 | . . . 1 . . . 1 . Utility 2 | . . . 1 . . . 1 . Weapon . | . . . . . . . . . Parts Attached 89 | 7 13 15 18 8 1 . 17 10 Power 14 | 1 4 4 2 1 1 . . 1 Engine 12 | 1 4 3 2 1 . . . 1 Core 2 | . . 1 . . 1 . . . Reactor . | . . . . . . . . . Propulsion 22 | 2 3 4 6 1 . . 4 2 Treads . | . . . . . . . . . Leg . | . . . . . . . . . Wheel 2 | 2 . . . . . . . . Hover 10 | . 3 1 5 1 . . . . Flight 10 | . . 3 1 . . . 4 2 Utility 21 | 1 2 3 2 3 . . 9 1 Device 9 | . . 2 . 2 . . 5 . Storage 1 | 1 . . . . . . . . Processor 8 | . 2 1 1 1 . . 3 . Hackware 2 | . . . 1 . . . 1 . Protection 1 | . . . . . . . . 1 Artifact . | . . . . . . . . . Weapon 32 | 3 4 4 8 3 . . 4 6 Energy Gun 4 | . . . . . . . . 4 Energy Cannon 1 | . . . 1 . . . . . Ballistic Gun 13 | 3 4 4 2 . . . . . Ballistic Cannon 13 | . . . 5 3 . . 4 1 Launcher . | . . . . . . . . . Special Weapon . | . . . . . . . . . Impact Weapon . | . . . . . . . . . Slashing Weapon . | . . . . . . . . . Piercing Weapon . | . . . . . . . . . Special Melee Weapon 1 | . . . . . . . . 1 Unidentified Prototypes 5 | . . . . 1 . . 1 3 Parts Lost 24 | . 2 7 . 7 . . 8 . Power 5 | . 1 2 . 1 . . 1 . Propulsion 10 | . 1 3 . 3 . . 3 . Utility 5 | . . 1 . 1 . . 3 . Weapon 4 | . . 1 . 2 . . 1 . Highest Loss Streak 7 | . 2 6 . 7 . . 4 . To Critical Strikes . | . . . . . . . . . Average Slot Usage (%) 78 | . 94 98 96 66 59 55 52 85 Engine 6 | . 11 11 7 6 4 . . 4 Core 2 | . . 1 2 . 6 11 2 . Wheel 1 | . 14 . . . . . . . Hover 11 | . 11 4 29 12 11 11 6 . Flight 8 | . . 22 2 . . . 9 30 Device 7 | . . 14 4 8 11 11 7 . Processor 20 | . 26 13 22 22 22 22 22 19 Hackware 2 | . . . 6 1 . . . 9 Ballistic Gun 8 | . 28 27 7 . . . . . Ballistic Cannon 5 | . . . 11 16 4 . . . Naked Turns . | . . . . . . . . . Heaviest Build 17 | 11 11 8 15 17 7 6 8 15 Greatest Support 26 | 26 26 12 21 21 7 7 14 17 Greatest Overweight (x) 3 | . . 1 1 3 . . 1 . Average Overweight (x) . | . . . . . . . . . Largest Inventory Capacity 8 | 8 8 5 5 5 5 5 5 5 Average Capacity 5 | 7 5 5 5 5 5 5 5 5 Most Carried 5 | 1 5 5 5 5 5 5 5 5 Average Carried 4 | . 4 4 4 4 5 5 4 4 Final Capacity 8 | 8 5 5 5 5 5 5 5 5 Final Carried 5 | 1 5 5 5 5 5 5 5 5 Class Distribution -------------------- 60% | Mutant 22% | Scavenger-Mutant 11% | Scout Dominant Class ---------------- Mutant | -10/Materials Scavenger-Mutant | -10/Mines Mutant | -9/Materials Mutant | -9/Mines Mutant | -9/Exiles Scout | -8/Mines Mutant | -8/Materials Mutant | -8/Storage Resources | -11 -10 -10 -9 -9 -9 -8 -8 -8 ----------- Run | Jun Mat Min Mat Min Exi Min Mat Sto Matter Collected 1638 | 221 222 389 337 136 . . 224 109 Remotely . | . . . . . . . . . Salvage Created 1373 | . 276 313 357 86 . . 33 308 Parts 107 | . 28 21 39 3 . . 2 14 Haulers Intercepted . | . . . . . . . . . Recyclers Shooed . | . . . . . . . . . Parts Field Recycled . | . . . . . . . . . Retrieved Matter . | . . . . . . . . . Parts Self-Destructed . | . . . . . . . . . Prevented . | . . . . . . . . . Kills | -11 -10 -10 -9 -9 -9 -8 -8 -8 ------- Run | Jun Mat Min Mat Min Exi Min Mat Sto Combat Hostiles Destroyed 38 | . 8 11 13 3 . . 1 2 Guns 22 | . 8 9 3 . . . . 2 Cannons 14 | . . . 10 3 . . 1 . AOE 1 | . . 1 . . . . . . Classes Destroyed 8 | . 3 . 3 1 . . . 1 Builder 2 | . . . 1 . . . . 1 Recycler 2 | . . . . . . . . 2 Operator 2 | . . . 2 . . . . . Watcher 4 | . 3 . 1 . . . . . Swarmer 18 | . 4 5 8 . . . 1 . Grunt 12 | . 4 6 2 . . . . . Sentry 5 | . . . 3 . . . . 2 Assembled 3 | . . . . 3 . . . . Thug 1 | . . . . 1 . . . . Best Kill Streak 5 | . 5 3 4 2 . . 1 3 Combat Bots Only 4 | . 4 3 4 2 . . 1 1 Max Kills in Single Turn 2 | . 1 1 2 1 . . 1 2 Gunslinging . | . . . . . . . . . Exploded 1 | . . 1 . . . . . . Melee . | . . . . . . . . . Uniques/NPCs Destroyed . | . . . . . . . . . Combat | -11 -10 -10 -9 -9 -9 -8 -8 -8 -------- Run | Jun Mat Min Mat Min Exi Min Mat Sto Damage Taken 2952 | . 346 516 345 694 . . 895 156 Core 1095 | . 56 122 72 291 . . 513 41 Absorbed by Shields . | . . . . . . . . . Redirected to Shielding 4 | . . . . . . . . 4 Regen/Repaired (Parts) 52 | . . . 52 . . . . . Core Remaining (%) 45 | 100 . 28 . . . 9 . . Volleys Fired 171 | . 33 50 36 18 . . 15 19 Largest 2 | . 2 2 2 2 . . 1 1 Hottest 70 | . 40 40 70 70 . . 57 63 Shots Fired 281 | . 66 91 68 22 . . 15 19 Gun 209 | . 66 91 32 . . . 3 17 Cannon 72 | . . . 36 22 . . 12 2 Launcher . | . . . . . . . . . Special . | . . . . . . . . . Kinetic 257 | . 66 91 64 22 . . 12 2 Thermal 9 | . . . 4 . . . 3 2 Explosive . | . . . . . . . . . Electromagnetic 15 | . . . . . . . . 15 Robot Hit Streak 11 | . 5 11 9 3 . . 3 8 Robot Miss Streak 4 | . 3 2 2 2 . . 4 2 Penetration Max 1 | . . . . . . . 1 . Secondary Targets 8 | . 3 4 1 . . . . . Max Gunslinging Chain 1 | . 1 1 1 . . . . . Shots Hit Robots 172 | . 38 63 42 10 . . 5 14 Core Hits 84 | . 20 28 24 4 . . 1 7 Critical Kills 1 | . . . . . . . 1 . Critical Parts Destroyed 2 | . . . . . . . 2 . Critical Strikes 3 | . . . . . . . 3 . Destroy 3 | . . . . . . . 3 . Melee Attacks . | . . . . . . . . . Impact . | . . . . . . . . . Slashing . | . . . . . . . . . Piercing . | . . . . . . . . . Sneak Attacks . | . . . . . . . . . Combat Hostiles . | . . . . . . . . . Follow-up Attacks . | . . . . . . . . . Damage Inflicted 2082 | . 416 511 566 199 . . 116 274 Guns 1397 | . 416 511 178 . . . 18 274 Cannons 673 | . . . 388 199 . . 86 . Explosions . | . . . . . . . . . Melee . | . . . . . . . . . Ramming 12 | . . . . . . . 12 . Kinetic 1736 | . 416 511 524 199 . . 86 . Thermal 60 | . . . 42 . . . 18 . Explosive . | . . . . . . . . . Electromagnetic 274 | . . . . . . . . 274 Impact . | . . . . . . . . . Slashing . | . . . . . . . . . Piercing . | . . . . . . . . . Highest Corruption 1 | . . 1 . . . . . . Average Corruption 1 | . . 1 . . . . . . Corruption Purged . | . . . . . . . . . Corruption Blocked . | . . . . . . . . . Effects 1 | . . 1 . . . . . . Heat Flow Errors 1 | . . 1 . . . . . . Overload Shots . | . . . . . . . . . Overflow Damage 22 | . . . . 22 . . . . Projectiles 22 | . . . . 22 . . . . Explosions . | . . . . . . . . . Melee . | . . . . . . . . . Knockbacks 5 | . . . 2 1 . . 2 . Impact . | . . . . . . . . . Kinetic 5 | . . . 2 1 . . 2 . Secondary . | . . . . . . . . . Self-Inflicted Damage 6 | . . . . . . . 6 . Shots . | . . . . . . . . . Rammed 1 | . . . . . . . 1 . Targets Rammed 1 | . . . . . . . 1 . Kicked . | . . . . . . . . . Crushed . | . . . . . . . . . Highest Temperature 155 | . 9 155 102 53 . . 50 73 Average Temperature 20 | . 5 18 24 16 . . 19 24 Received Heat Transfer 893 | . 114 156 51 140 . . 369 63 Siege Activations . | . . . . . . . . . Robots Corrupted . | . . . . . . . . . Combat Hostiles . | . . . . . . . . . Parts Fried 1 | . . 1 . . . . . . Impact Corruptions . | . . . . . . . . . Robots Melted . | . . . . . . . . . Combat Hostiles . | . . . . . . . . . Parts Melted . | . . . . . . . . . Heat Transferred 148 | . . . 74 . . . 74 . Parts Sabotaged . | . . . . . . . . . Parts Stolen . | . . . . . . . . . Parts Stripped . | . . . . . . . . . Power Chain Reactions . | . . . . . . . . . Missiles Intercepted . | . . . . . . . . . Alert | -11 -10 -10 -9 -9 -9 -8 -8 -8 ------- Run | Jun Mat Min Mat Min Exi Min Mat Sto Peak Influence 605 | . 222 249 434 160 . . 605 570 Initial 255 | . . 86 96 145 . . . 255 Average 144 | . 99 148 250 48 . . 187 292 Maximum Alert Level 2 | . 1 1 2 . . . 2 2 Low Security (%) 68 | 100 96 76 28 100 . 100 56 7 Level 1 27 | . 4 23 61 . . . 33 79 Level 2 4 | . . . 10 . . . 9 12 Level 3 . | . . . . . . . . . Level 4 . | . . . . . . . . . Level 5 . | . . . . . . . . . High Security . | . . . . . . . . . Max Security . | . . . . . . . . . Squads Dispatched 10 | . 1 1 2 . . . 3 3 Investigation 3 | . . 1 1 . . . 1 . Extermination . | . . . . . . . . . Reinforcement 4 | . 1 . 1 . . . 2 . Assault 2 | . . . . . . . . 2 Garrison 1 | . . . . . . . . 1 Intercept . | . . . . . . . . . Searches Triggered . | . . . . . . . . . Construction Impeded . | . . . . . . . . . Haulers Reinforced . | . . . . . . . . . Active Scanning Responses . | . . . . . . . . . Cargo Convoy Interrupts . | . . . . . . . . . Stealth | -11 -10 -10 -9 -9 -9 -8 -8 -8 --------- Run | Jun Mat Min Mat Min Exi Min Mat Sto Distress Signals 6 | . 2 1 . . . . 1 2 Communications Jammed . | . . . . . . . . . Distress Signals . | . . . . . . . . . Times Spotted 136 | . 14 25 17 23 . . 48 9 Peak Tracking Total 18 | . 4 3 4 13 . . 18 5 Tactical Retreats 15 | . . 4 . 1 . . 8 2 Traps | -11 -10 -10 -9 -9 -9 -8 -8 -8 ------- Run | Jun Mat Min Mat Min Exi Min Mat Sto Traps Triggered 3 | . 1 . 1 . . . 1 . Indirectly . | . . . . . . . . . Trap Hack Attempts 35 | . . . . . . . . 35 Triggered . | . . . . . . . . . Disarmed . | . . . . . . . . . Reprogrammed 10 | . 6 . . . . . . 4 Reused . | . . . . . . . . . Traps Extracted . | . . . . . . . . . Installed . | . . . . . . . . . Triggered 2 | . . 2 . . . . . . Machines | -11 -10 -10 -9 -9 -9 -8 -8 -8 ---------- Run | Jun Mat Min Mat Min Exi Min Mat Sto Machines Disabled 4 | . . . . . . . 2 2 Max in Single Turn 1 | . . . . . . . 1 1 Machines Repaired . | . . . . . . . . . Machines Sabotaged . | . . . . . . . . . Overloaded Fab Kills . | . . . . . . . . . Hacking | -11 -10 -10 -9 -9 -9 -8 -8 -8 --------- Run | Jun Mat Min Mat Min Exi Min Mat Sto Machines Accessed 32 | . 5 1 8 1 5 1 7 4 Terminals 20 | . 5 . 6 . . 1 4 4 Fabricators . | . . . . . . . . . Repair Stations 2 | . . . 1 . . . 1 . Recycling Units 2 | . . . . . . . 2 . Scanalyzers 1 | . . . 1 . . . . . Garrison Access . | . . . . . . . . . Total Hacks 126 | . 16 1 26 1 50 2 15 15 Successful 89 | . 9 1 15 1 50 2 4 7 Failed 37 | . 7 . 11 . . . 11 8 Catastrophic 7 | . 1 . 2 . . . 2 2 Database Lockouts . | . . . . . . . . . Manual 17 | . 6 . 2 . 1 1 2 5 Terminals 56 | . 16 . 15 . . 2 8 15 Fabricators . | . . . . . . . . . Repair Stations 7 | . . . 4 . . . 3 . Recycling Units 4 | . . . . . . . 4 . Scanalyzers 7 | . . . 7 . . . . . Garrison Access . | . . . . . . . . . Terminal Hacks 77 | . 9 1 5 1 50 2 2 7 Record 57 | . 5 . 1 . 49 2 . . Prototype ID Bank 3 | . . . 1 . . . 1 1 Open Door 3 | . . 1 . 1 . . . 1 Branch Access Points 3 | . 1 . . . . . 1 1 Terminal Index 2 | . . . 1 . . . . 1 Alert Level 2 | . . . 1 . . . . 1 Unreport Threat 2 | . . . . . . . . 2 Reprogram Traps 2 | . 2 . . . . . . . Zone Layout 2 | . 1 . 1 . . . . . EX-Prototype ID Bank 1 | . . . . . 1 . . . Fabricator Hacks . | . . . . . . . . . Repair Station Hacks 5 | . . . 4 . . . 1 . Scan Component 2 | . . . 2 . . . . . Repair 2 | . . . 2 . . . . . Refit 1 | . . . . . . . 1 . Recycling Unit Hacks 1 | . . . . . . . 1 . Retrieve Components 1 | . . . . . . . 1 . Scanalyzer 6 | . . . 6 . . . . . Insert Component 3 | . . . 3 . . . . . Analyze 3 | . . . 3 . . . . . Garrison Access Hacks . | . . . . . . . . . Unauthorized Hacks . | . . . . . . . . . Terminals . | . . . . . . . . . Fabricators . | . . . . . . . . . Repair Stations . | . . . . . . . . . Recycling Units . | . . . . . . . . . Scanalyzers . | . . . . . . . . . Garrison Access . | . . . . . . . . . Data Cores Recovered 2 | . . . 1 . . . . 1 Used 1 | . . . 1 . . . . . Hacking Detections 22 | . 5 . 7 . . 1 6 3 Full Trace Events 2 | . . . 1 . . . 1 . Feedback Events . | . . . . . . . . . Feedback Blocked . | . . . . . . . . . Robot Schematics Acquired . | . . . . . . . . . Robots Built . | . . . . . . . . . Authchips . | . . . . . . . . . Time . | . . . . . . . . . Total Robot Build Rating . | . . . . . . . . . Part Schematics Acquired 3 | . . . 3 . . . . . Parts Built . | . . . . . . . . . Authchips . | . . . . . . . . . Time . | . . . . . . . . . Total Part Build Rating . | . . . . . . . . . Parts Repaired 2 | . . . 2 . . . . . Time 82 | . . . 82 . . . . . Parts Recycled . | . . . . . . . . . Recycled Matter . | . . . . . . . . . Retrieved Matter . | . . . . . . . . . Retrieved Components . | . . . . . . . . . Parts Scanalyzed 3 | . . . 3 . . . . . Part Schematics Acquired 3 | . . . 3 . . . . . Parts Damaged . | . . . . . . . . . Bothacking | -11 -10 -10 -9 -9 -9 -8 -8 -8 ------------ Run | Jun Mat Min Mat Min Exi Min Mat Sto Used RIF Installer . | . . . . . . . . . Robots Hacked . | . . . . . . . . . Non-combat . | . . . . . . . . . Combat . | . . . . . . . . . Robot Hacks Applied . | . . . . . . . . . Relay Couplers Released . | . . . . . . . . . Fabnet Peak Effective % . | . . . . . . . . . Robots Rewired . | . . . . . . . . . Allies Hacked . | . . . . . . . . . Hacks Repelled . | . . . . . . . . . Allies | -11 -10 -10 -9 -9 -9 -8 -8 -8 -------- Run | Jun Mat Min Mat Min Exi Min Mat Sto Total Allies 16 | . . 3 . 1 . . . 12 Largest Group 12 | . . 3 3 1 1 . . 12 Highest-Rated Group 235 | . . 40 40 31 31 . . 235 Highest-Rated Ally 31 | . . 16 16 31 31 . . 31 Total Orders 1 | . . . . 1 . . . . EXPLORE 1 | . . . . 1 . . . . Ally Attacks 67 | . . 5 3 . . . . 59 Total Damage 841 | . . 14 28 . . . . 799 Kills 9 | . . . 1 . . . . 8 Allies Corrupted . | . . . . . . . . . Allies Melted . | . . . . . . . . . Intel | -11 -10 -10 -9 -9 -9 -8 -8 -8 ------- Run | Jun Mat Min Mat Min Exi Min Mat Sto Robot Analysis Total . | . . . . . . . . . Derelict Logs Recovered 3 | . . 2 . 1 . . . . Drone Launches 10 | . . . . 10 . . . . Drone Recoveries 6 | . . . . 6 . . . . Exploration | -11 -10 -10 -9 -9 -9 -8 -8 -8 ------------- Run | Jun Mat Min Mat Min Exi Min Mat Sto Turns Passed 3508 | 38 275 681 578 702 280 276 369 309 Spaces Moved 4391 | 31 215 1119 623 503 412 439 584 465 Core 162 | 4 . 5 . 79 . . 74 . Treads . | . . . . . . . . . Legs . | . . . . . . . . . Wheels 115 | 27 88 . . . . . . . Hover 2152 | . 127 118 589 424 412 439 43 . Flight 1962 | . . 996 34 . . . 467 465 Fastest Speed 26 | 50 56 37 34 50 60 60 26 27 Average Speed 52 | 83 70 39 51 95 60 60 39 32 Slowest Speed 200 | 90 100 100 120 200 60 60 120 35 Overloaded Moves 240 | . . . . . . . 158 82 Propulsion Burnouts . | . . . . . . . . . Robots Hopped 36 | . . 12 . . . . 24 . Cave-ins Triggered . | . . . . . . . . . Exploration Rate (%) 65 | 3 52 100 53 99 91 92 55 41 Regions Visited 8 Branch Regions 5 Pre-discovered Areas 2 | . . . . 1 1 . . . Known Exits Taken 3 | . 1 . . . . 1 1 . Unknown Exits Taken 5 | 1 . 1 1 1 1 . . . Scrap Searched 3 | . . 1 . 2 . . . . Spaces Dug 2 | . . . . . . . 2 . Terrain Destroyed 4 | . . . . . . . 4 . Melee . | . . . . . . . . . Projectile 4 | . . . . . . . 4 . AOE . | . . . . . . . . . Terrain Rammed . | . . . . . . . . . Walls Destroyed . | . . . . . . . . . Machines Disabled . | . . . . . . . . . Actions | -11 -10 -10 -9 -9 -9 -8 -8 -8 --------- Run | Jun Mat Min Mat Min Exi Min Mat Sto Total 5301 | 39 282 1276 821 702 445 451 680 605 Wait 577 | . 6 91 126 169 29 13 75 68 Move 4317 | 30 214 1094 622 502 411 438 541 465 Hop 30 | . . 12 . . . . 18 . Pick Up 23 | 1 6 5 5 2 1 . 1 2 Fast Attach 50 | 7 6 5 9 5 . . 10 8 Attach 16 | . . 4 2 2 . . 6 2 Detach 14 | . . 2 . 2 . . 8 2 Swap 23 | . 7 6 7 1 1 . 1 . Drop 44 | 1 10 7 14 1 3 . 4 4 Fire 171 | . 33 50 36 18 . . 15 19 Melee . | . . . . . . . . . Ram 1 | . . . . . . . 1 . Kick . | . . . . . . . . . Crush . | . . . . . . . . . Escape Stasis . | . . . . . . . . . Rewire . | . . . . . . . . . Trap 35 | . . . . . . . . 35 Miscellaneous . | . . . . . . . . . Route ------- -11/Junkyard -10/Materials (discovered 2 exits: *Min x2) -10/Mines (discovered 2 exits: *Mat x2) -9/Materials (discovered 2 exits: *Min x2) -9/Mines (discovered 3 exits: *Mat x2 / *Exi) -9/Exiles -8/Mines (discovered 2 exits: *Mat x2) -8/Materials (discovered 2 exits: *Sto x2) -8/Storage (discovered 1 exit: Rec) History --------- Turn | Location | Event 22 | -11/Junkyard | Discovered new exit (range 15) 39 | -11/Junkyard | Entered Materials 66 | -10/Materials | Identified exit to Mines 314 | -10/Materials | Entered Mines 331 | -10/Mines | Met a Derelict shopkeep closing up shop 479 | -10/Mines | Lost 6 parts (1p3n1u1w) 561 | -10/Mines | Learned Materials non-interactive machine intel 749 | -10/Mines | Build established: Scavenger-Mutant 809 | -10/Mines | Core integrity fell below 50% 837 | -10/Mines | Discovered new exit (range 10) 922 | -10/Mines | Assisted by bots powering up and referring to "LRC-V3" 922 | -10/Mines | Learned Materials stockpile data 927 | -10/Mines | Discovered new exit (range 12) 995 | -10/Mines | Entered Materials 995 | -9/Materials | Accompanied by 3 allies 995 | -9/Materials | Evolved 2 slots: Propulsion x1, Utility x1 997 | -9/Materials | Loaded intel: 34 non-interactive machine locations 1335 | -9/Materials | Discovered new exit (range 15) 1343 | -9/Materials | Discovered new exit (range 7) 1349 | -9/Materials | Build established: Mutant 1418 | -9/Materials | Repaired Imp. Hover Unit 1469 | -9/Materials | Repaired Lgt. Angular Momentum Engine 1573 | -9/Materials | Entered Mines 1578 | -9/Mines | Discovered new exit (range 8) 1586 | -9/Mines | Found the Drone Emporium 1593 | -9/Mines | Found Prototype Device 1604 | -9/Mines | Assembled infested the area 1604 | -9/Mines | Learned location of Storage (-8) 1609 | -9/Mines | Assisted by a Guerilla fighting off Assembled 1624 | -9/Mines | A weapon hastily lodged in a ceiling crevice suddenly fell to the ground 1666 | -9/Mines | Core integrity fell below 50% 1673 | -9/Mines | Core integrity fell below 20% 1698 | -9/Mines | Lost 7 parts (1p3n1u2w) 1713 | -9/Mines | Identified Sensor Drone Bay 1715 | -9/Mines | Identified exit to Materials 1803 | -9/Mines | Discovered exit to Materials (range 54) 2248 | -9/Mines | Received a Mining Laser from a helpful Derelict 2267 | -9/Mines | Deemed a non-threat by the Exiles lab entrance 2267 | -9/Mines | Discovered new exit (range 5) 2275 | -9/Mines | Entered Exiles 2275 | -9/Exiles | Accompanied by 1 ally 2300 | -9/Exiles | Met 8R-AWN 2327 | -9/Exiles | Met EX-HEX 2345 | -9/Exiles | Met EX-BIN 2354 | -9/Exiles | Aligned with FarCom system 2355 | -9/Exiles | Given EX-Vault access code 2379 | -9/Exiles | Opened EX-Vault 2385 | -9/Exiles | Found Chronowheel 2398 | -9/Exiles | Warned to stay clear of 0b10 Research branches 2434 | -9/Exiles | Met EX-DEC 2445 | -9/Exiles | Visited The Gauntlet 2517 | -9/Exiles | Learned location of Zion (-6) 2550 | -9/Exiles | Discovered new exit (range 10) 2555 | -9/Exiles | Left Exiles lab with Chronowheel 2555 | -9/Exiles | Entered Mines 2555 | -8/Mines | Discovered exit to Materials (range 9) 2635 | -8/Mines | Discovered exit to Materials (range 10) 2831 | -8/Mines | Entered Materials 2831 | -8/Materials | Evolved 2 slots: Propulsion x1, Utility x1 2843 | -8/Materials | Build established: Scout 3098 | -8/Materials | Core integrity fell below 50% 3144 | -8/Materials | Lost 4 parts (2n1u1w) 3180 | -8/Materials | Identified exit to Storage 3200 | -8/Materials | Core integrity fell below 20% 3200 | -8/Materials | Entered Storage 3250 | -8/Storage | Found Prototype Launcher 3369 | -8/Storage | Met a pair of Derelict thieves 3375 | -8/Storage | Assisted by bots powering up and referring to "LRC-V3" 3416 | -8/Storage | Garrison activated, responded to threat 3436 | -8/Storage | Identified exit to Recycling 3509 | -8/Storage | Destroyed by G-47 Trooper with Particle Gun Last Messages --------------- >>Alert(Purge) Purged threat record, alert level lowered. 03436_ Connecting with Terminal... >>Prototypes Downloading prototype IDs... Cld. Airjet Enh. Autogun >>Access(Branch) Found 1 branch access point: (9,12) Recycling Map updated. 03436_ Connecting with Terminal... 03448_ Terminal disabled. 03451_ Critical hit (Burn: +37). 03452_ Door malfunctions. 03454_ Y-45 Defender destroyed. 03480_ U-05 Engineer repairs door. 03492_ Y-45 Defender destroyed. 03499_ Dropped Hvy. EM Shotgun. 03500_ Acquired Field Laser. Map ----- +----------------------------------------------------+ | ??????????????????????????????? | | ??????????????????????????????? | | ??????????????????????????????? | | ??????????????????????????????? | | ??????????????????????????????? | | ??????????????????????????????? | | ??????????????????????????????? | | ??????????????????????????????? | | ??????????????????????????????? | | #########?????????????????????? | | ??????????????# ????? | | ????s??s?????? ????? | | ######?????????s??????? ????? | | ##?????????????????????? g????? | | ###????????????????????? ????? | | #T###??????????????????? ????? | | + #??????????????????? ????? | | #####??????????????????? #???? | | #???????????????????????# #???? | | #?######????????????????# #???? | | ###T## #????????????????# #???? | | #[ #????????????????# #???? | | #%=T" #????????????????# #???? | | # #???????????????## ##??? | | / ################# #??? | | # +%= @ #??? | | # ######## ######## #??? | | ########??????# #??????#####??? | | #?????????????# #?????????????? | | #?????????#####+#####?????????? | | #?????????# ! #?????????? | | #?????????# =#?????????? | | #?????????# ! [ #?????????? | | ??????????# ! #?????????? | | ??????????###########?????????? | | | | | | | | | | | | | | | | | | | | | | | | | | | | | | | +----------------------------------------------------+ Best States ------------- Heat Dissipation 31 Energy Generation 18 Energy Capacity 275 Matter Stores 300 Matter Capacity 300 Sight Range 16 Robot Scan Range 15 Terrain Scan Range 16 Terrain Scan Density 85 ECM Strength 1 Propulsion Shielding 33 Evasion (%) 64 Targeting Accuracy 16 Offensive Hacking 10 Defensive Hacking 10 Item Schematics ----------------- Imp. Hover Unit | -9/Materials | Scanalyzed Lgt. Ion Engine | -9/Materials | Scanalyzed Cryofiber Web | -9/Materials | Scanalyzed Robot Schematics ------------------ None Fabricated ------------ Nothing Alien Tech Used ----------------- None Achievements -------------- The More The Merrier Challenges ------------ None Game ------ Seed ShrapnelThrusterMapper Manual? 0 Play Time 01:23:39 Cumulative 17.2 hours Start 2023.12.14 @ 22:14:57 End 2023.12.14 @ 23:47:13 Sessions 1 Manual Loads 0 Difficulty Rogue Special Mode None Game No. 11 Rogue 11 Adventurer 0 Explorer 0 Win Type - Total 0 Types 0/0/0/0/0/0/0/0/0 Lore% 19 Gallery% 21 Achievement% 22 Wizard Run 0 Options --------- ASCII 0 Keyboard 1 Movement Arrows Keybinds 0 Fullscreen 1 Font 12/Proggy Map View 83x54 Tactical HUD 1 Map Filters NONE Filters NONE Steam 0 RUN: e8946c20-b6d5-40a6-b4ae-b89de420ed6e